bitfinex-derivatives/quotes_BNBF0:USTF0_20250425
["timestamp","ask_amount","ask_price","bid_price","bid_amount"]
[1745561119042,1.26410234,607.11,605.09,1.82321995]
[1745561119241,1.26410234,607.11,605.1,0.30325901]
[1745561120543,1.26410234,607.11,605.09,1.82321995]
[1745561120742,1.26410234,607.11,605.11,1.531]
[1745561121055,1.26410234,607.11,605.12,0.30325954]
[1745561121640,0.28723892,607.1,605.12,0.30325954]
[1745561122142,1.26410234,607.04,605.12,0.30325954]
[1745561123646,1.26410234,607.04,605.11,1.531]
[1745561123846,1.26410234,607.04,605.12,0.30330357]
[1745561124243,1.26410234,607.04,605.13,1.533]
[1745561124446,0.28726618,607.03,605.13,1.533]
[1745561125046,1.55136852,607.03,605.13,1.533]
[1745561127249,1.26410234,607.03,605.13,1.533]
[1745561127443,0.287265,607.02,605.13,1.533]
[1745561130255,1.26410234,607.36,605.13,1.533]
[1745561130559,0.28722588,607.01,605.13,1.533]
[1745561130750,1.26410234,607.36,605.13,1.533]
[1745561131054,1.26410234,607.31,605.13,1.533]
[1745561133455,0.28722943,607.3,605.13,1.533]
[1745561133955,1.26410234,607.29,605.13,1.533]
[1745561135256,1.26410234,607.29,605.14,0.30328453]
[1745561135752,1.26410234,607.29,605.14,1.32428453]
[1745561135957,1.26410234,607.29,605.15,0.30328453]
[1745561136156,1.26410234,607.28,605.15,0.30328453]
[1745561136558,1.55131636,607.28,605.15,0.30328453]
[1745561138968,1.55131636,607.28,605.14,1.021]
[1745561139165,1.26410234,607.16,605.15,0.3032845]
[1745561142059,1.26410234,607.18,605.15,0.3032845]
[1745561142561,0.28722706,607.17,605.15,0.3032845]
[1745561145067,0.28722706,607.17,605.14,1.021]
[1745561145366,0.28722706,607.17,605.15,0.30324656]
[1745561145864,1.26410234,607.16,605.15,0.30324656]
[1745561146560,1.26410234,607.16,605.14,1.021]
[1745561146763,1.26410234,607.16,605.15,0.30322851]
[1745561148570,1.5513294,607.17,605.15,0.30322851]
[1745561151170,1.5513294,607.17,605.14,1.021]
[1745561151373,1.26410234,607.13,605.15,0.30322837]
[1745561153573,0.28722706,607.17,605.15,0.30322837]
[1745561154269,1.26410234,607.25,605.16,0.30322908]
[1745561154470,1.26410234,607.25,605.14,1.021]
[1745561154471,0.28720454,607.16,605.17,0.30322908]
[1745561154670,0.28720454,607.16,605.18,0.30322908]
[1745561154874,1.26410234,607.25,605.19,0.30322908]
[1745561155079,1.26410234,607.25,605.2,0.30322908]
[1745561155278,1.26410234,607.25,605.15,0.30322908]
[1745561155575,0.28720454,607.24,605.15,0.30322908]
[1745561157277,1.26410234,607.39,605.14,1.021]
[1745561157475,0.28718795,607.23,605.15,0.30322829]
[1745561157776,1.26410234,607.39,605.15,0.30322829]
[1745561158580,2.15072968,608.18,605.15,0.30322829]
[1745561158581,1.55129029,607.38,605.15,0.30322829]
[1745561158773,1.55129029,607.38,605.14,1.30818795]
[1745561158977,1.55129029,607.38,605.15,0.30322911]
[1745561160277,1.26410234,607.38,605.15,0.30322911]
[1745561160579,0.28718914,607.37,605.15,0.30322911]
[1745561161376,0.28718914,607.37,605.14,1.30818914]
[1745561161573,0.28718914,607.37,605.15,0.30322544]
[1745561162376,0.28718914,607.37,605.15,1.37322544]
[1745561162578,0.28718914,607.37,605.16,0.30322544]
[1745561163280,1.26410234,607.4,605.16,0.30322544]
[1745561163479,0.28718558,607.36,605.16,0.30322544]
[1745561163876,1.26410234,607.44,605.15,1.35718558]
[1745561164681,0.28716662,607.43,605.15,1.35718558]
[1745561166275,1.26410234,608.29,605.15,1.07]
[1745561166480,0.28706121,607.42,605.15,1.35706121]
[1745561166780,1.26410234,608.29,605.16,0.30317956]
[1745561167481,1.26410234,608.29,605.15,1.35706121]
[1745561167676,0.28706358,608.28,605.16,0.30317697]
[1745561168582,1.26410234,607.87,605.16,0.30317697]
[1745561169580,0.28710621,607.86,605.16,0.30317697]
[1745561171982,1.26410234,607.39,605.16,0.30317697]
[1745561173593,1.26410234,607.39,605.17,0.30312003]
[1745561173789,1.26410234,607.39,605.16,0.30312003]
[1745561174792,1.26410234,607.61,605.16,0.30312003]
[1745561175490,0.28710384,607.6,605.16,0.30312003]
[1745561178106,0.28710384,607.6,605.15,1.35710384]
[1745561178303,1.26410234,607.91,605.16,0.3031195]
[1745561178591,0.28706831,607.59,605.16,0.3031195]
[1745561178801,1.26410234,607.91,605.16,0.3031195]
[1745561179490,0.28706831,607.9,605.16,0.3031195]
[1745561181297,1.26410234,607.92,605.16,0.3031195]
[1745561181499,0.28706713,607.89,605.15,0.59018663]
[1745561181701,0.28706713,607.89,605.16,0.3031195]
[1745561182603,0.28706713,607.89,605.16,1.2671195]
[1745561182799,0.28706713,607.89,605.17,0.3031195]
[1745561184203,1.26410234,607.95,605.17,0.3031195]
[1745561184510,0.28706239,607.88,605.16,1.25106239]
[1745561184801,0.28706239,607.88,605.17,0.30311675]
[1745561185202,1.26410234,607.72,605.17,0.30311675]
[1745561186013,1.26410234,607.72,605.17,0.968]
[1745561186194,1.26410234,607.72,605.18,0.30311535]
[1745561187497,1.26410234,607.67,605.19,0.30311745]
[1745561187702,1.26410234,607.67,605.18,0.30311745]
[1745561187902,1.26410234,607.67,605.17,1.25508844]
[1745561187903,1.26410234,607.67,605.19,0.30311745]
[1745561188101,1.26410234,607.67,605.18,0.30311745]
[1745561188297,1.26410234,607.67,605.19,0.30311745]
[1745561188499,1.26410234,607.67,605.18,0.30311745]
[1745561188797,0.28709437,607.66,605.19,0.30311745]
[1745561189016,0.28709437,607.66,605.2,0.3031166]
[1745561189197,0.28709437,607.66,605.18,0.3031166]
[1745561189404,0.28709437,607.66,605.19,0.3031166]
[1745561189597,0.28709437,607.66,605.18,0.3031166]
[1745561189797,0.28709437,607.66,605.19,0.3031166]
[1745561189998,0.28709437,607.66,605.18,0.3031166]
[1745561190302,1.26410234,607.67,605.18,0.3031166]
[1745561190512,0.28709437,607.65,605.17,1.25509437]
[1745561190700,0.28709437,607.65,605.18,0.30311816]
[1745561191106,1.26410234,607.58,605.18,0.30311816]
[1745561192003,1.26410234,607.58,605.17,2.29878482]
[1745561192205,1.26410234,607.58,605.18,0.30311675]
[1745561192802,0.28709437,607.65,605.18,0.30311675]
[1745561192803,1.26410234,607.59,605.18,0.30311675]
[1745561193505,1.26410234,607.59,605.17,0.968]
[1745561193805,0.28710384,607.58,605.18,0.30311667]
[1745561194600,1.26410234,607.53,605.21,1.04369045]
[1745561194804,1.26410234,607.53,605.22,0.30311667]
[1745561195006,1.26410234,607.53,605.23,0.30311948]
[1745561195310,1.26410234,607.53,605.24,0.30311948]
[1745561195505,1.26410234,607.53,605.22,0.30311948]
[1745561195804,1.26410234,607.53,605.23,0.30311948]
[1745561196008,1.26410234,607.53,605.24,0.30311948]
[1745561196205,1.26410234,607.53,605.25,0.30311948]
[1745561196405,1.26410234,607.53,605.22,0.30311948]
[1745561196606,1.26410234,607.53,605.23,0.30312153]
[1745561196806,0.28710621,607.52,605.22,0.30312153]
[1745561197012,0.28710621,607.52,605.23,0.30312153]
[1745561197202,0.28710621,607.52,605.22,0.30312153]
[1745561197406,0.28710621,607.52,605.23,0.30312153]
[1745561197600,0.28710621,607.52,605.24,0.30312153]
[1745561197842,0.28710621,607.52,605.21,0.30312153]
[1745561198020,0.28710621,607.52,605.22,0.30312153]
[1745561198205,0.28710621,607.52,605.23,0.30312153]
[1745561198409,0.28710621,607.52,605.24,0.30312153]
[1745561198603,0.28710621,607.52,605.21,0.30312153]
[1745561198807,0.28710621,607.52,605.22,0.30312153]
[1745561199002,0.28710621,607.52,605.23,0.30312153]
[1745561199205,0.28710621,607.52,605.24,0.30312153]
[1745561199409,1.26410234,607.57,605.18,1.04369045]
[1745561199608,0.28710502,607.51,605.25,0.983]
[1745561199810,0.28710502,607.51,605.26,0.30311315]
[1745561202515,0.28707542,607.5,605.25,2.02669045]
[1745561204917,0.28707542,607.5,605.25,0.983]
[1745561205216,1.26410234,608.68,605.25,0.983]
[1745561205721,0.28694878,608.67,605.26,0.30306488]
[1745561207025,0.28694878,608.67,605.25,0.983]
[1745561207220,0.28694878,608.67,605.27,0.3031115]
[1745561207419,0.28694878,608.67,605.28,0.3031115]
[1745561207622,1.26410234,607.71,605.29,1.04369045]
[1745561207821,1.26410234,607.71,605.3,0.3031115]
[1745561209523,0.28707779,607.7,605.3,0.3031115]
[1745561210127,0.28707779,607.7,605.31,0.30311909]
[1745561210324,0.28707779,607.7,605.32,0.30311909]
[1745561210523,0.28707779,607.7,605.33,0.30311909]
[1745561210721,0.28707779,607.7,605.34,0.30311909]
[1745561210921,0.28707779,607.7,605.35,0.30311909]
[1745561211120,0.28707779,607.7,605.27,0.30311909]
[1745561211318,1.26410234,607.76,605.27,0.30311909]
[1745561211527,1.26410234,607.76,605.26,0.30311909]
[1745561211824,0.28707542,607.69,605.27,1.55311608]
[1745561212021,0.28707542,607.69,605.28,0.30311608]
[1745561212426,1.55117776,607.69,605.28,0.30311608]
[1745561213128,1.55117776,607.69,605.27,2.66]
[1745561213328,1.55117776,607.69,605.28,0.30312341]
[1745561214128,1.55117776,607.69,605.29,0.30312341]
[1745561214333,1.26410234,607.69,605.3,0.30312341]
[1745561214628,1.26410234,607.66,605.27,2.66]
[1745561214823,1.26410234,607.66,605.28,0.30312359]
[1745561215529,1.26410234,607.66,605.27,2.94708252]
[1745561215729,1.26410234,607.66,605.28,0.30312339]
[1745561216130,1.26410234,607.66,605.27,2.94708252]
[1745561216430,1.26410234,607.66,605.28,0.30312364]
[1745561216634,1.26410234,607.33,605.36,1.04369045]
[1745561216829,1.26410234,607.33,605.37,0.30312364]
[1745561217534,0.2871145,607.32,605.37,0.30312364]
[1745561218833,0.2871145,607.32,605.38,1.04369045]
[1745561219033,0.2871145,607.32,605.39,0.30312364]
[1745561220232,1.26410234,607.38,605.39,0.30312364]
[1745561220532,0.28711095,607.31,605.39,0.30312364]
[1745561220735,0.28711095,607.31,605.4,0.30312261]
[1745561221035,0.28711095,607.31,605.41,0.30312261]
[1745561221336,0.28711095,607.31,605.34,0.28711095]
[1745561221534,0.28711095,607.31,605.35,0.30312476]
[1745561223136,0.28711095,607.31,605.34,0.28711095]
[1745561223335,1.26410234,607.67,605.35,0.30311745]
[1745561223547,1.26410234,607.67,605.28,0.30311745]
[1745561223735,0.28699374,607.3,605.34,0.28699374]
[1745561223938,1.26410234,607.67,605.35,0.30311745]
[1745561224739,0.2870766,607.66,605.35,0.30311745]
[1745561225035,0.2870766,607.66,605.34,0.28699374]
[1745561225235,0.2870766,607.66,605.35,0.30311633]
[1745561225936,1.26410234,607.65,605.35,0.30311633]
[1745561226535,1.26410234,607.65,605.36,1.23511633]
[1745561226730,0.28707424,607.64,605.37,0.30311633]
[1745561226931,0.28707424,607.64,605.38,1.379]
[1745561227134,0.28707424,607.64,605.39,0.30311633]
[1745561229239,1.26410234,607.65,605.38,1.379]
[1745561229537,0.2870695,607.63,605.39,0.30312044]
[1745561230533,0.2870695,607.63,605.4,1.193]
[1745561230936,0.2870695,607.63,605.41,0.30311775]
[1745561231239,1.26410234,607.59,605.41,0.30311775]
[1745561232540,0.28706239,607.58,605.41,0.30311775]
[1745561233743,0.28706239,607.58,605.4,2.145]
[1745561233944,1.26410234,607.56,605.41,0.30306351]
[1745561235540,0.28705411,607.55,605.41,0.30306351]
[1745561236441,1.26410234,607.51,605.46,1.04369045]
[1745561236642,1.26410234,607.51,605.47,0.30306351]
[1745561238244,1.26410234,607.51,605.46,1.04369045]
[1745561238547,0.28704819,607.5,605.47,0.3030614]
[1745561239544,0.28704819,607.5,605.48,0.3030614]
[1745561239743,0.28704819,607.5,605.46,0.3030614]
[1745561239938,0.28704819,607.5,605.47,0.3030614]
[1745561240139,0.28704819,607.5,605.46,0.3030614]
[1745561241253,1.26410234,607.56,605.47,1.04369045]
[1745561241444,1.26410234,607.56,605.48,0.30303722]
[1745561241647,0.28703872,607.55,605.47,1.04369045]
[1745561244053,0.28703872,607.55,605.45,0.28703872]
[1745561244355,1.26410234,608.15,605.4,2.145]
[1745561244551,0.28692275,607.54,605.45,0.28692275]
[1745561245050,1.26410234,608.15,605.45,0.28692275]
[1745561245651,0.28697481,608.14,605.45,0.28692275]
[1745561247261,1.26410234,608.15,605.4,1.193]
[1745561247455,1.26410234,608.17,605.4,1.193]
[1745561247758,0.28697717,608.13,605.45,0.28697717]
[1745561248049,1.26410234,608.17,605.45,0.28697717]
[1745561248451,1.26410234,608.17,605.46,1.405]
[1745561248649,0.28697481,608.16,605.46,1.405]
[1745561250054,0.28697481,608.16,605.47,0.30306145]
[1745561250255,1.26410234,608.21,605.46,1.405]
[1745561250456,1.26410234,608.21,605.47,0.30306182]
[1745561250659,0.28696298,608.2,605.47,0.30306182]
[1745561250955,0.28696298,608.2,605.46,1.405]
[1745561251989,0.28696298,608.2,605.47,0.30305812]
[1745561252258,1.26410234,607.77,605.47,0.30305812]
[1745561253558,0.28701504,607.76,605.47,0.30305812]
[1745561254968,0.28701504,607.76,605.46,1.69201504]
[1745561255157,0.28701504,607.76,605.47,0.30306059]
[1745561255461,0.28701504,607.76,605.48,1.1]
[1745561255661,0.28701504,607.76,605.49,0.30306059]
[1745561256262,1.26410234,607.78,605.49,0.30306059]
[1745561256561,0.28701149,607.75,605.49,0.30306059]
[1745561257465,1.26410234,607.65,605.49,0.30306059]
[1745561257959,1.26410234,607.65,605.48,1.1]
[1745561258162,1.26410234,607.65,605.49,0.30305749]
[1745561259567,0.28702688,607.64,605.49,0.30305749]
[1745561259965,0.28702688,607.64,605.48,1.38702688]
[1745561260166,0.28702688,607.64,605.49,0.30305335]
[1745561262266,1.26410234,607.65,605.49,0.30305335]
[1745561262667,0.28702688,607.64,605.49,0.30305335]
[1745561265969,0.28702688,607.64,605.5,1.481]
[1745561266165,0.28702688,607.64,605.51,0.30305335]
[1745561267167,0.28702688,607.64,605.5,1.481]
[1745561267466,0.28702688,607.64,605.51,0.30304871]
[1745561267768,0.28702688,607.64,605.5,1.481]
[1745561268268,1.26410234,607.65,605.5,1.481]
[1745561268690,0.28702215,607.63,605.51,0.30304145]
[1745561269092,0.28702215,607.63,605.5,1.481]
[1745561269369,0.28702215,607.63,605.51,0.30304549]
[1745561270571,0.28702215,607.63,605.5,1.481]
[1745561271338,1.26410234,607.72,605.5,1.481]
[1745561271548,1.26410234,607.72,605.51,0.30304514]
[1745561271672,0.28701386,607.62,605.5,1.481]
[1745561271874,1.26410234,607.75,605.5,1.481]
[1745561272102,1.26410234,607.75,605.51,1.44604472]
[1745561272270,1.26410234,607.75,605.52,0.30304472]
[1745561272772,0.28700913,607.74,605.52,0.30304472]
[1745561273872,0.28700913,607.74,605.51,1.143]
[1745561274070,0.28700913,607.74,605.52,0.30304351]
[1745561274272,1.26410234,607.75,605.52,0.30304351]
[1745561274674,1.26410234,607.65,605.52,0.30304351]
[1745561275371,1.26410234,607.65,605.52,1.33704351]
[1745561275570,1.26410234,607.65,605.53,0.30304351]
[1745561276776,0.28701741,607.64,605.53,0.30304351]
[1745561278478,0.28701741,607.64,605.52,1.034]
[1745561278677,0.28701741,607.64,605.53,0.30303059]
[1745561279980,0.28701741,607.64,605.52,1.034]
[1745561280274,1.26410234,607.65,605.53,0.30302847]
[1745561280681,1.26410234,607.61,605.53,0.30302847]
[1745561281183,1.26410234,607.61,605.52,1.034]
[1745561281382,1.26410234,607.61,605.53,0.30303046]
[1745561281584,0.28701741,607.6,605.53,0.30303046]
[1745561281776,0.28701741,607.6,605.53,1.52603046]
[1745561281981,0.28701741,607.6,605.54,0.30303046]
[1745561283187,1.26410234,607.54,605.54,1.34672091]
[1745561283479,1.26410234,607.54,605.55,0.30303046]
[1745561284088,1.26410234,607.54,605.54,2.35369045]
[1745561284283,1.26410234,607.54,605.55,0.30302944]
[1745561285280,1.26410234,607.54,605.54,2.35369045]
[1745561285484,1.26410234,607.54,605.55,0.30303038]
[1745561285684,1.26410234,607.54,605.54,2.35369045]
[1745561285885,1.26410234,607.54,605.55,0.30302356]
[1745561286684,0.28702333,607.53,605.55,0.30302356]
[1745561286888,1.26410234,607.48,605.57,1.04369045]
[1745561287085,1.26410234,607.48,605.58,0.30302356]
[1745561287287,1.26410234,607.48,605.59,0.30303008]
[1745561287483,1.26410234,607.48,605.58,0.30303008]
[1745561287685,1.26410234,607.48,605.59,0.30303008]
[1745561287886,1.26410234,607.48,605.58,0.30303008]
[1745561288080,1.26410234,607.48,605.59,0.30303008]
[1745561288285,1.26410234,607.48,605.6,0.30303008]
[1745561288486,1.26410234,607.48,605.58,0.30303008]
[1745561288690,1.26410234,607.48,605.59,0.30303008]
[1745561288888,1.26410234,607.48,605.58,0.30303008]
[1745561289087,1.26410234,607.48,605.59,0.30303008]
[1745561289287,1.26410234,607.48,605.58,0.30303008]
[1745561289489,1.26410234,607.48,605.59,0.30303008]
[1745561289685,1.26410234,607.48,605.58,0.30303008]
[1745561289891,1.26410234,607.57,605.59,0.30303008]
[1745561290085,1.26410234,607.57,605.55,0.30303008]
[1745561290391,1.26410234,607.57,605.56,0.30303008]
[1745561290695,0.28701978,607.56,605.57,0.30303008]
[1745561290890,0.28701978,607.56,605.58,0.30303008]
[1745561291091,0.28701978,607.56,605.59,0.30303008]
[1745561291292,0.28701978,607.56,605.6,0.30303008]
[1745561291489,0.28701978,607.56,605.55,0.30303008]
[1745561292387,1.26410234,607.57,605.55,0.30303008]
[1745561292589,0.28701978,607.55,605.55,0.30303008]
[1745561294892,0.28701978,607.55,605.54,1.59701978]
[1745561295093,0.28701978,607.55,605.55,0.30302771]
[1745561297798,0.28701978,607.55,605.55,1.47302771]
[1745561298009,0.28701978,607.55,605.56,0.30302771]
[1745561298302,1.26410234,607.75,605.56,0.30302771]
[1745561298499,0.28699729,607.54,605.56,0.30302771]
[1745561298806,1.26410234,607.75,605.56,0.30302771]
[1745561299306,1.26410234,607.74,605.56,0.30302771]
[1745561299809,1.55109963,607.74,605.56,0.30302771]
[1745561301307,1.26410234,607.74,605.56,0.30302771]
[1745561301609,0.28699847,607.73,605.56,0.30302771]
[1745561304304,1.26410234,607.78,605.56,0.30302771]
[1745561304611,0.28699374,607.72,605.56,0.30302771]
[1745561305605,1.26410234,607.63,605.56,0.30302771]
[1745561307602,0.28701149,607.62,605.56,0.30302771]
[1745561307803,0.28701149,607.62,605.56,1.57702771]
[1745561308103,1.26410234,607.58,605.57,0.30302771]
[1745561308709,1.26410234,607.58,605.58,1.341]
[1745561309008,1.26410234,607.58,605.59,0.30302771]
[1745561309810,1.26410234,607.57,605.59,0.30302771]
[1745561313310,1.26410234,607.57,605.58,1.341]
[1745561313508,1.26410234,607.57,605.59,0.30302639]
[1745561313708,1.55111738,607.56,605.59,0.30302639]
[1745561314411,1.55111738,607.56,605.6,1.031]
[1745561314615,0.28701504,607.56,605.61,0.30302639]
[1745561314816,0.28701504,607.56,605.6,1.031]
[1745561317717,0.28701504,607.56,605.61,1.031]
[1745561319320,1.26084487,607.99,605.61,1.031]
[1745561319519,0.28701859,607.55,605.61,1.031]
[1745561319826,1.26084487,607.99,605.61,1.031]
[1745561320121,1.26084487,607.98,605.61,1.031]
[1745561321819,0.28701504,607.97,605.61,1.031]
[1745561322921,1.26084487,607.88,605.61,1.031]
[1745561325530,0.28707424,607.87,605.61,1.031]
[1745561325731,1.26084487,607.25,605.61,1.031]
[1745561328630,1.26084487,607.37,605.61,1.031]
[1745561328830,0.28712753,607.24,605.61,1.031]
[1745561329035,1.26084487,607.37,605.61,1.031]
[1745561329738,0.28711331,607.36,605.61,1.031]
[1745561331237,0.28711331,607.36,605.62,1.236]
[1745561331438,1.26084487,607.44,605.62,1.236]
[1745561331635,0.2871299,607.35,605.62,1.236]
[1745561331832,1.26084487,607.44,605.62,1.236]
[1745561332637,0.28712516,607.43,605.62,1.236]
[1745561334344,1.26084487,607.56,605.62,1.236]
[1745561334738,0.28709437,607.42,605.62,1.236]
[1745561334936,1.26084487,607.56,605.63,1.34]
[1745561336542,1.26084487,607.61,605.63,1.34]
[1745561336838,0.28709792,607.55,605.63,1.34]
[1745561337143,1.26084487,607.61,605.63,1.34]
[1745561337342,0.287092,607.54,605.63,1.34]
[1745561343346,1.26084487,608.05,605.63,1.34]
[1745561343650,0.28705411,607.53,605.63,1.34]
[1745561343849,1.26084487,608.05,605.64,0.915]
[1745561344148,1.26084487,608.04,605.64,0.915]
[1745561346747,1.26084487,607.48,605.64,0.915]
[1745561347641,0.28712042,607.47,605.64,0.915]
[1745561348742,1.26084487,607.44,605.64,0.915]
[1745561349647,0.28712516,607.43,605.64,0.915]
[1745561350747,0.28712516,607.43,605.65,1.435]
[1745561351448,1.26084487,607.37,605.65,1.435]
[1745561352750,0.287137,607.36,605.65,1.435]
[1745561354144,1.26084487,607.22,605.65,1.435]
[1745561356851,2.43232445,607.36,605.65,1.435]
[1745561356852,1.26084487,607.24,605.65,1.435]
[1745561358654,0.28714767,607.23,605.65,1.435]
[1745561359958,1.26084487,607.1,605.65,1.435]
[1745561362255,1.26084487,607.08,605.65,1.435]
[1745561364757,0.28719032,607.07,605.65,1.435]
[1745561367459,1.26084487,607.13,605.65,1.435]
[1745561367764,0.28717492,607.06,605.65,1.435]
[1745561370262,1.26084487,607.18,605.65,1.435]
[1745561370659,0.28715241,607.05,605.65,2.514]
[1745561370858,1.26084487,607.24,605.65,2.514]
[1745561372562,0.2871453,607.23,605.65,2.514]
[1745561373362,1.26084487,607.24,605.65,2.514]
[1745561373566,0.28714293,607.22,605.65,2.514]
[1745561373967,1.26084487,607.31,605.65,2.514]
[1745561375265,0.28713464,607.3,605.65,2.514]
[1745561375765,0.28713464,607.3,605.65,3.795]
[1745561376365,1.26084487,607.21,605.65,3.795]
[1745561378467,1.26084487,607.12,605.65,3.795]
[1745561379666,0.28715241,607.11,605.65,3.795]
[1745561384471,1.26084487,606.98,605.65,3.795]
[1745561385777,0.28716662,606.97,605.65,3.795]
[1745561387177,0.28716662,606.97,605.65,5.201]
[1745561388378,1.26084487,606.98,605.65,5.201]
[1745561388581,0.28716662,606.96,605.65,5.201]
[1745561391378,1.26084487,607.36,605.65,5.201]
[1745561391676,0.28715477,606.95,605.65,5.201]
[1745561391873,1.26084487,607.36,605.65,5.201]
[1745561392673,0.28715477,607.35,605.65,5.201]
[1745561393778,1.26084487,607.29,605.65,5.201]
[1745561394574,0.28716307,607.28,605.65,5.201]
[1745561396382,1.26084487,607.13,605.65,5.201]
[1745561397683,0.28715596,607.12,605.65,5.201]
[1745561398786,1.26084487,607.09,605.65,5.201]
[1745561400680,0.28715596,607.08,605.65,5.201]
[1745561403382,1.26084487,607.13,605.65,5.201]
[1745561403579,0.28715122,607.07,605.65,5.201]
[1745561409290,1.26084487,607.21,605.65,5.201]
[1745561409585,0.28710384,607.06,605.65,5.201]
[1745561409790,1.26084487,607.21,605.65,5.201]
[1745561409991,1.26084487,607.11,605.65,5.201]
[1745561412592,0.28711331,607.1,605.65,5.201]
[1745561418406,1.26084487,607.67,605.65,5.201]
[1745561418599,0.2870399,607.09,605.65,5.201]
[1745561418897,1.26084487,607.67,605.65,5.201]
[1745561419697,0.2870399,607.66,605.65,5.201]
[1745561420796,1.26084487,607.64,605.65,5.201]
[1745561421601,0.28705529,607.63,605.65,5.201]
[1745561423203,1.26084487,607.41,605.65,5.201]
[1745561424708,0.28708252,607.4,605.65,5.201]
[1745561427513,1.26084487,607.45,605.65,5.201]
[1745561427812,0.28707779,607.39,605.65,5.201]
[1745561429213,1.26084487,607.59,605.65,5.201]
[1745561429413,1.10571558,607.58,605.66,0.30294426]
[1745561429807,1.10571558,607.57,605.66,0.30294426]
[1745561430006,1.10571558,607.57,605.34,0.28707779]
[1745561430007,1.39265726,607.57,605.35,0.30294426]
[1745561430211,1.10571558,607.56,605.35,0.30294426]
[1745561430815,1.10571558,607.55,605.35,0.30294426]
[1745561431308,1.10571558,607.54,605.35,0.30294426]
[1745561431510,1.10571558,607.53,605.35,0.30294426]
[1745561431913,1.10571558,607.53,605.36,0.30294426]
[1745561432113,1.10571558,607.52,605.34,0.28707779]
[1745561432320,1.10571558,607.52,605.35,0.30287086]
[1745561432516,1.10571558,607.52,605.36,0.30287086]
[1745561432715,1.10571558,607.52,605.37,0.30287086]
[1745561432916,1.10571558,607.51,605.38,0.30287086]
[1745561433217,1.10571558,607.51,605.39,1.34902354]
[1745561433415,1.10571558,607.5,605.4,0.30287086]
[1745561433919,1.10571558,607.49,605.4,0.30287086]
[1745561434316,1.10571558,607.48,605.4,0.30287086]
[1745561434517,1.10571558,607.48,605.41,0.30287086]
[1745561434715,1.10571558,607.47,605.42,0.30287086]
[1745561434913,1.10571558,607.46,605.4,0.30287086]
[1745561435115,1.10571558,607.45,605.4,0.30287086]
[1745561435617,1.10571558,607.44,605.4,0.30287086]
[1745561436221,1.10571558,607.43,605.4,0.30287086]
[1745561437417,1.10571558,607.42,605.4,0.30287086]
[1745561438130,1.10571558,607.41,605.4,0.30287086]
[1745561438322,1.10571558,607.41,605.41,0.30287086]
[1745561438513,1.10571558,607.41,605.42,0.30287086]
[1745561438716,1.10571558,607.4,605.43,0.30287086]
[1745561438914,1.10571558,607.4,605.39,2.084]
[1745561438915,1.10571558,607.4,605.4,0.30287086]
[1745561439216,1.10571558,607.39,605.41,0.30287086]
[1745561439417,1.10571558,607.38,605.42,0.30287086]
[1745561439717,1.10571558,607.38,605.43,0.30287086]
[1745561439914,1.10571558,607.38,605.44,0.30287086]
[1745561440218,1.10571558,607.37,605.45,0.30290069]
[1745561440420,1.10571558,607.37,605.46,0.30290069]
[1745561440618,1.10571558,607.36,605.47,0.30290069]
[1745561440818,1.10571558,607.36,605.48,0.30290069]
[1745561441013,1.10571558,607.35,605.4,0.30290069]
[1745561441217,1.10571558,607.35,605.41,0.30290069]
[1745561441419,1.10571558,607.35,605.42,0.30290069]
[1745561441618,1.10571558,607.35,605.43,0.3028934]
[1745561441817,1.10571558,607.34,605.44,0.3028934]
[1745561442018,1.10571558,607.34,605.45,0.3028934]
[1745561442318,1.10571558,607.33,605.46,0.3028934]
[1745561442516,1.10571558,607.33,605.47,0.3028934]
[1745561442715,1.10571558,607.33,605.48,0.3028934]
[1745561442918,1.10571558,607.33,605.49,0.3028934]
[1745561443122,1.10571558,607.32,605.42,0.28701149]
[1745561443319,1.10571558,607.32,605.43,0.30293702]
[1745561443519,1.10571558,607.31,605.44,0.30293702]
[1745561443716,1.10571558,607.31,605.45,0.30293702]
[1745561444025,1.10571558,607.3,605.46,0.30293702]
[1745561444220,1.10571558,607.3,605.47,0.30293702]
[1745561444516,1.10571558,607.3,605.48,0.30293702]
[1745561444723,1.10571558,607.29,605.48,0.30293702]
[1745561444917,1.10571558,607.29,605.49,0.30293702]
[1745561445118,1.10571558,607.29,605.5,0.30293702]
[1745561445318,1.10571558,607.28,605.51,0.30293702]
[1745561445522,1.10571558,607.28,605.52,0.30293702]
[1745561445721,1.10571558,607.27,605.53,0.30293702]
[1745561446019,1.10571558,607.27,605.54,0.30293702]
[1745561446219,1.10571558,607.27,605.46,0.28701386]
[1745561446422,1.10571558,607.26,605.47,0.30293832]
[1745561446621,1.10571558,607.26,605.48,0.30293832]
[1745561446826,1.10571558,607.26,605.49,0.30293832]